Cogmind - Beta 15 @@@ ROGUE MODE // 2025.09.14 @ 17:05:35 Player: Petvaria Result: Destroyed by G-67 Veteran with Plasma Rifle Performance ------------- Evolutions (5) 2500 Regions Visited (6) 1200 Robots Destroyed (57) 285 Value Destroyed (2080) 2080 Prototype IDs (16) 320 Alien Tech Used (0) 0 Bonus (800) 800 TOTAL SCORE: 7185 Bonus ------- Registered with UFD 300 Met Optimus in HQ 500 Cogmind --------- Core Integrity 0/1000 Matter 300/300 Energy 322/450 System Corruption 11% Temperature Cool (37) Movement Walking (340) Ox3 Location -5/Factory Parts ------- > --- POWER (2) -------- (None) > --- PROPULSION (6) --- Carbon-fiber Leg Carbon-fiber Leg VSS Leg Improved Titanium Leg > --- UTILITY (7) ------ Vampiric Humpback Energy Well Improved Melee Analysis Suite > --- WEAPON (2) ------- Companion Sword > --- INVENTORY (35) --- Light Angular Momentum Engine VSS Leg Flexi-carbon Leg Nuclear Pulse Thruster Nuclear Pulse Array Improved Heat Sink Advanced Heat Sink Insulated Plating System Shield Assault Cannon Improved Proton Missile Launcher Remote Datajack Peak State ------------ > --- POWER ------------ Light Deuterium Engine > --- PROPULSION ------- Carbon-fiber Leg Carbon-fiber Leg Flexi-carbon Leg Flexi-carbon Leg Assembled Alloy Leg Potential Leg > --- UTILITY ---------- Vampiric Humpback Energy Well Improved Melee Analysis Suite Hardened Medium Armor Plating Improved Light Armor Plating Long-range Tractor Beam > --- WEAPON ----------- Companion Sword > --- INVENTORY -------- Improved Deuterium Engine Light Angular Momentum Engine Light Treads Light Treads Light Treads Light Treads Light Treads Light Treads Advanced Treads Overtuned Treads Medium Treads Carbon-fiber Leg Carbon-fiber Leg VSS Leg VSS Leg VSS Leg VSS Leg Improved Titanium Leg Flexi-carbon Leg Wheel Armored Huge Wheel Nuclear Pulse Thruster Nuclear Pulse Array Improved Heat Sink Advanced Heat Sink Insulated Plating System Shield Assault Cannon Improved Proton Missile Launcher Remote Datajack [Rating: 81] Favorites ----------- Power Ion Engine Engine Ion Engine Power Core Light Fission Core Propulsion Light Treads Treads Light Treads Leg Flexi-carbon Leg Wheel Wheel Utility Large Storage Unit Device Long-range Tractor Beam Storage Large Storage Unit Processor Improved Melee Analysis Suite Protection Light Armor Plating Weapon Subdweller Machine Gun Ballistic Gun Subdweller Machine Gun Slashing Weapon Companion Sword Piercing Weapon Makeshift Spear Build | -11 -10 -10 -9 -9 -6 -5 ------- Run | Yrd Mat Sub Rec Scr Fac Fac Slots Evolved 10 | . . . . . 8 2 Power 1 | . . . . . . 1 Propulsion 4 | . . . . . 3 1 Utility 5 | . . . . . 5 . Weapon . | . . . . . . . Parts Attached 67 | 6 2 8 4 8 24 15 Power 7 | 1 . 1 . 1 3 1 Engine 6 | 1 . 1 . 1 2 1 Core 1 | . . . . . 1 . Reactor . | . . . . . . . Propulsion 35 | 2 . 2 1 4 15 11 Treads 12 | 2 . 1 1 . 5 3 Leg 20 | . . . . 2 10 8 Wheel 3 | . . 1 . 2 . . Hover . | . . . . . . . Flight . | . . . . . . . Utility 17 | 1 2 2 1 2 6 3 Device 3 | . . . . 1 1 1 Storage 4 | 1 1 . . 1 1 . Processor 1 | . . . . . 1 . Hackware . | . . . . . . . Protection 9 | . 1 2 1 . 3 2 Artifact . | . . . . . . . Weapon 8 | 2 . 3 2 1 . . Energy Gun . | . . . . . . . Energy Cannon . | . . . . . . . Ballistic Gun 6 | 2 . 2 2 . . . Ballistic Cannon . | . . . . . . . Launcher . | . . . . . . . Special Weapon . | . . . . . . . Impact Weapon . | . . . . . . . Slashing Weapon 1 | . . . . 1 . . Piercing Weapon 1 | . . 1 . . . . Special Melee Weapon . | . . . . . . . Unidentified Prototypes 2 | . . . . 2 . . Parts Lost 43 | . . 6 . . 13 24 Power 7 | . . 2 . . 3 2 Propulsion 25 | . . 1 . . 5 19 Utility 9 | . . 1 . . 5 3 Weapon 2 | . . 2 . . . . Highest Loss Streak 13 | . . 3 . . 7 13 To Critical Strikes . | . . . . . . . Average Backups 15 | 3 13 14 14 12 19 26 Power . | . 1 . . . . 1 Propulsion 7 | 1 4 4 4 4 15 17 Utility 3 | . 4 4 3 2 1 4 Weapon 3 | . 3 4 6 4 1 2 Tool/Special . | . . . . . . . Unused Backups 20 | . 1 2 . 7 . 10 Power 1 | . . . . . . 1 Propulsion 5 | . 1 . . 2 . 2 Utility 5 | . . . . 1 . 4 Weapon 8 | . . 2 . 4 . 2 Tool/Special 1 | . . . . . . 1 Average Slot Usage (%) 83 | . 97 99 78 80 68 66 Engine 6 | . 14 13 . 4 3 3 Treads 16 | . 28 27 28 12 . 4 Leg 7 | . . . . 2 31 26 Wheel 4 | . . . . 12 . 1 Storage 13 | . 14 14 14 14 11 11 Protection 10 | . 11 13 14 10 6 3 Ballistic Gun 14 | . 28 27 20 7 . . Slashing Weapon 3 | . . . . 6 5 5 Piercing Weapon 2 | . . . 1 7 . . Peak Build Rating 81 | 6 8 14 15 38 75 81 Average Rating 24 | 4 7 9 11 15 65 65 On Entrance 19 | . 6 8 11 12 38 63 Naked Turns . | . . . . . . . Heaviest Build 228 | 13 31 34 31 217 228 226 Greatest Support 130 | 40 40 40 40 60 120 130 Greatest Overweight (x) 7 | . . 3 . 7 5 7 Average Overweight (x) 1 | . . . . 2 1 1 Largest Inventory Capacity 35 | 8 15 15 15 35 35 35 Average Capacity 20 | 7 14 15 15 16 35 35 Most Carried 34 | 6 15 15 15 15 32 34 Average Carried 15 | 3 13 14 14 12 21 28 Final Capacity 35 | 8 15 15 15 35 35 35 Final Carried 30 | 6 15 13 13 9 30 13 Class Distribution -------------------- 73% | Mutant 26% | Hauler-Mutant Dominant Class ---------------- Mutant | -10/Materials Mutant | -10/Subcaves Mutant | -9/Recycling Mutant | -9/Scraptown Hauler-Mutant | -6/Factory Hauler-Mutant | -5/Factory Resources | -11 -10 -10 -9 -9 -6 -5 ----------- Run | Yrd Mat Sub Rec Scr Fac Fac Matter Collected 1483 | 209 153 248 43 211 360 259 Remotely 70 | . . . . . . 70 Salvage Created 2751 | . 209 342 91 . 1467 642 Parts 134 | . 24 30 4 . 59 17 Haulers Intercepted 2 | . 2 . . . . . Recyclers Shooed 1 | . . . . . 1 . Parts Field Recycled . | . . . . . . . Retrieved Matter . | . . . . . . . Parts Self-Destructed 10 | . . 10 . . . . Prevented . | . . . . . . . Kills | -11 -10 -10 -9 -9 -6 -5 ------- Run | Yrd Mat Sub Rec Scr Fac Fac Combat Hostiles Destroyed 48 | . 8 11 2 . 19 8 Melee 27 | . . . . . 19 8 Guns 21 | . 8 11 2 . . . Classes Destroyed 11 | . 2 3 1 . 5 . Worker 2 | . . . . . 2 . Hauler 2 | . 2 . . . . . Recycler 3 | . . . . . 2 1 Watcher 2 | . . . . . 2 . Swarmer 11 | . 8 3 . . . . Grunt 21 | . . 2 . . 12 7 Sentry 6 | . . . 2 . 4 . Hunter 1 | . . . . . 1 . Programmer 3 | . . . . . 2 1 Artisan 1 | . . 1 . . . . Subdweller 6 | . . 6 . . . . Best Kill Streak 4 | . 2 3 1 . 4 2 Combat Bots Only 3 | . 2 3 1 . 3 2 Max Kills in Single Turn 1 | . 1 1 1 . 1 1 Gunslinging . | . . . . . . . Exploded . | . . . . . . . Melee 1 | . . . . . 1 1 Uniques/NPCs Destroyed . | . . . . . . . Combat | -11 -10 -10 -9 -9 -6 -5 -------- Run | Yrd Mat Sub Rec Scr Fac Fac Hostile Shots Fired 855 | . 25 102 24 1 412 291 Missed 254 | . 9 22 9 . 143 71 Hits 601 | . 16 80 15 1 269 220 Projectile 601 | . 16 80 15 1 269 220 Critical Strikes 25 | . 1 2 . 1 9 12 Damage Taken 9181 | . 115 899 230 31 3643 4263 Core 1297 | . 14 102 30 . 546 605 Absorbed by Shields . | . . . . . . . Core Remaining (%) 48 | 100 . . . 41 4 . Volleys Fired 70 | . 19 35 16 . . . Largest 2 | . 2 2 2 . . . Hottest 53 | . 40 50 53 . . . Shots Fired 136 | . 38 69 29 . . . Gun 136 | . 38 69 29 . . . Cannon . | . . . . . . . Launcher . | . . . . . . . Special . | . . . . . . . Kinetic 136 | . 38 69 29 . . . Thermal . | . . . . . . . Explosive . | . . . . . . . Electromagnetic . | . . . . . . . Robot Hit Streak 15 | . 6 10 15 . . . Robot Miss Streak 3 | . 1 3 2 . . . Penetration Max . | . . . . . . . Secondary Targets 2 | . . 2 . . . . Max Gunslinging Chain 1 | . . 1 . . . . Shots Hit Robots 252 | . 26 50 24 . 90 62 Core Hits 83 | . 13 19 4 . 32 15 Critical Kills 1 | . . 1 . . . . Critical Parts Destroyed 1 | . 1 . . . . . Critical Strikes 8 | . 1 1 . . 2 4 Destroy 2 | . 1 1 . . . . Melee Attacks 213 | . . 1 5 22 115 70 Impact . | . . . . . . . Slashing 207 | . . . . 22 115 70 Piercing 6 | . . 1 5 . . . Sneak Attacks 8 | . . . . . 7 1 Combat Hostiles . | . . . . . . . Follow-up Attacks 6 | . . . . . 1 5 Damage Inflicted 7841 | . 306 720 438 . 3841 2536 Guns 1464 | . 306 720 438 . . . Cannons . | . . . . . . . Explosions . | . . . . . . . Melee 6377 | . . . . . 3841 2536 Ramming . | . . . . . . . Kinetic 1464 | . 306 720 438 . . . Thermal . | . . . . . . . Explosive . | . . . . . . . Electromagnetic . | . . . . . . . Impact . | . . . . . . . Slashing 6377 | . . . . . 3841 2536 Piercing . | . . . . . . . Highest Corruption 11 | . . . . . 6 11 Average Corruption 4 | . . . . . 4 5 Corruption Purged . | . . . . . . . Corruption Blocked . | . . . . . . . Effects 24 | . . . . . 22 2 Message Errors 7 | . . . . . 6 1 Matter Fused 7 | . . . . . 6 1 Energy Discharges 5 | . . . . . 5 . Parts Rejected 3 | . . . . . 3 . Data Loss (minor) 2 | . . . . . 2 . Overload Shots . | . . . . . . . Overflow Damage 445 | . . . . . 313 132 Projectiles . | . . . . . . . Explosions . | . . . . . . . Melee 445 | . . . . . 313 132 Knockbacks . | . . . . . . . Impact . | . . . . . . . Kinetic . | . . . . . . . Secondary . | . . . . . . . Self-Inflicted Damage . | . . . . . . . Shots . | . . . . . . . Rammed . | . . . . . . . Targets Rammed . | . . . . . . . Kicked . | . . . . . . . Crushed . | . . . . . . . Highest Temperature 290 | . 12 290 6 21 30 22 Average Temperature 47 | . 5 165 4 12 11 6 Received Heat Transfer 3890 | . . 890 54 43 1159 1744 Effects 1 | . . 1 . . . . Interference 1 | . . 1 . . . . Siege Activations . | . . . . . . . Martial Activations . | . . . . . . . Shielding Activations . | . . . . . . . Robots Disrupted . | . . . . . . . Combat Hostiles . | . . . . . . . Robots Corrupted . | . . . . . . . Combat Hostiles . | . . . . . . . Parts Fried . | . . . . . . . Impact Corruptions . | . . . . . . . Robots Melted . | . . . . . . . Combat Hostiles . | . . . . . . . Parts Melted 2 | . . . . . 2 . Heat Transferred . | . . . . . . . Parts Sabotaged . | . . . . . . . Parts Stolen . | . . . . . . . Parts Stripped . | . . . . . . . Power Chain Reactions . | . . . . . . . Alert | -11 -10 -10 -9 -9 -6 -5 ------- Run | Yrd Mat Sub Rec Scr Fac Fac Maximum Alert Level . | . . . . . . . Low Security (%) 100 | 100 100 . 100 . 100 100 Level 1 . | . . . . . . . Level 2 . | . . . . . . . Level 3 . | . . . . . . . Level 4 . | . . . . . . . Level 5 . | . . . . . . . High Security . | . . . . . . . Max Security . | . . . . . . . Peak Influence 107 | . 87 . 30 . 107 84 Initial 45 | . . . . . . 45 Average 21 | . 18 . 1 . 39 18 Influence Increases 1277 | . 254 120 75 . 548 280 Destroy 0b10 Robot/C 840 | . 160 100 40 . 380 160 Destroy 0b10 Robot/NC 45 | . 10 . . . 30 5 Destroy Leader 188 | . 24 20 . . 104 40 Destroy Structure 9 | . . . 5 . 4 . Lose Combat Pursuer 195 | . 60 . 30 . 30 75 Influence Decreases 1277 | . 185 189 45 30 455 373 Entered New Map 112 | . . 34 . 30 . 48 Time Decay 872 | . 185 155 45 . 342 145 Lost Part 293 | . . . . . 113 180 Squads Dispatched 7 | . . . . . 4 3 Investigation 1 | . . . . . . 1 Extermination 3 | . . . . . 2 1 Reinforcement 3 | . . . . . 2 1 Assault . | . . . . . . . Garrison . | . . . . . . . Intercept . | . . . . . . . Searches Triggered . | . . . . . . . Construction Impeded . | . . . . . . . Haulers Reinforced 1 | . . . . . 1 . Active Scanning Responses . | . . . . . . . Cargo Convoy Interrupts . | . . . . . . . Stealth | -11 -10 -10 -9 -9 -6 -5 --------- Run | Yrd Mat Sub Rec Scr Fac Fac Distress Signals 2 | . 1 . . . 1 . Communications Jammed . | . . . . . . . Distress Signals . | . . . . . . . Times Spotted 104 | . 18 17 5 10 36 18 Peak Tracking Total 7 | . 5 6 3 4 5 7 Tactical Retreats 10 | . 3 . 1 . 1 5 Traps | -11 -10 -10 -9 -9 -6 -5 ------- Run | Yrd Mat Sub Rec Scr Fac Fac Traps Triggered 2 | . 1 . . . . 1 Indirectly . | . . . . . . . Trap Hack Attempts . | . . . . . . . Triggered . | . . . . . . . Disarmed . | . . . . . . . Reprogrammed . | . . . . . . . Reused . | . . . . . . . Traps Extracted . | . . . . . . . Installed . | . . . . . . . Triggered . | . . . . . . . Machines | -11 -10 -10 -9 -9 -6 -5 ---------- Run | Yrd Mat Sub Rec Scr Fac Fac Machines Disabled 5 | . . . . 5 . . Max in Single Turn 1 | . . . . 1 . . Garrison Access 1 | . . . . . 1 . Machines Repaired . | . . . . . . . Machines Dismantled . | . . . . . . . Machines Sabotaged . | . . . . . . . Overloaded Fab Kills . | . . . . . . . Hacking | -11 -10 -10 -9 -9 -6 -5 --------- Run | Yrd Mat Sub Rec Scr Fac Fac Machines Accessed 5 | . . 1 . 2 2 . Terminals . | . . . . . . . Fabricators 1 | . . . . . 1 . Repair Stations . | . . . . . . . Recycling Units . | . . . . . . . Scanalyzers . | . . . . . . . Garrison Access 1 | . . . . . 1 . Total Hacks 12 | . . 3 . 7 2 . Successful 11 | . . 3 . 7 1 . Failed 1 | . . . . . 1 . Catastrophic 1 | . . . . . 1 . Database Lockouts . | . . . . . . . Manual 1 | . . . . . 1 . Terminals . | . . . . . . . Fabricators 1 | . . . . . 1 . Repair Stations . | . . . . . . . Recycling Units . | . . . . . . . Scanalyzers . | . . . . . . . Garrison Access 1 | . . . . . 1 . Terminal Hacks 10 | . . 3 . 7 . . Record 2 | . . 2 . . . . Robot Analysis 6 | . . . . 6 . . Open Door 1 | . . . . 1 . . Proto ID Catalog 1 | . . 1 . . . . Fabricator Hacks . | . . . . . . . Repair Station Hacks . | . . . . . . . Recycling Unit Hacks . | . . . . . . . Scanalyzer . | . . . . . . . Garrison Access Hacks 1 | . . . . . 1 . Seal Access 1 | . . . . . 1 . Unauthorized Hacks . | . . . . . . . Terminals . | . . . . . . . Fabricators . | . . . . . . . Repair Stations . | . . . . . . . Recycling Units . | . . . . . . . Scanalyzers . | . . . . . . . Garrison Access . | . . . . . . . Data Cores Recovered . | . . . . . . . Used . | . . . . . . . Hacking Detections 1 | . . . . . 1 . Full Trace Events . | . . . . . . . Feedback Events . | . . . . . . . Feedback Blocked . | . . . . . . . Robot Schematics Acquired . | . . . . . . . Robots Built . | . . . . . . . Authchips . | . . . . . . . Time . | . . . . . . . Total Robot Build Rating . | . . . . . . . Part Schematics Acquired . | . . . . . . . Parts Built . | . . . . . . . Authchips . | . . . . . . . Time . | . . . . . . . Total Part Build Rating . | . . . . . . . Parts Repaired . | . . . . . . . Time . | . . . . . . . Parts Recycled . | . . . . . . . Recycled Matter . | . . . . . . . Retrieved Matter . | . . . . . . . Retrieved Components . | . . . . . . . Parts Scanalyzed . | . . . . . . . Part Schematics Acquired . | . . . . . . . Parts Damaged . | . . . . . . . Bothacking | -11 -10 -10 -9 -9 -6 -5 ------------ Run | Yrd Mat Sub Rec Scr Fac Fac Used RIF Installer . | . . . . . . . Robots Hacked . | . . . . . . . Non-combat . | . . . . . . . Combat . | . . . . . . . Robot Hacks Applied . | . . . . . . . Relay Couplers Released . | . . . . . . . Fabnet Peak Effective % . | . . . . . . . Robots Rewired . | . . . . . . . Allies Hacked . | . . . . . . . Hacks Repelled . | . . . . . . . Allies | -11 -10 -10 -9 -9 -6 -5 -------- Run | Yrd Mat Sub Rec Scr Fac Fac Total Allies . | . . . . . . . Largest Group . | . . . . . . . Highest-Rated Group . | . . . . . . . Highest-Rated Ally . | . . . . . . . Total Orders . | . . . . . . . Ally Attacks . | . . . . . . . Total Damage . | . . . . . . . Kills . | . . . . . . . Allies Corrupted . | . . . . . . . Allies Melted 3 | . . . . 3 . . Intel | -11 -10 -10 -9 -9 -6 -5 ------- Run | Yrd Mat Sub Rec Scr Fac Fac Active Infowar (turns) . | . . . . . . . Robot Analysis Total 6 | . . . . 6 . . Derelict Logs Recovered 4 | . . 2 . 2 . . Drone Launches . | . . . . . . . Drone Recoveries . | . . . . . . . Exploration | -11 -10 -10 -9 -9 -6 -5 ------------- Run | Yrd Mat Sub Rec Scr Fac Fac Turns Passed 8907 | 99 1077 1774 1116 2759 1587 495 Spaces Moved 4762 | 59 348 990 637 1959 625 144 Core 11 | 11 . . . . . . Treads 2018 | 48 348 982 637 2 . 1 Legs 785 | . . . . 60 591 134 Wheels 1948 | . . 8 . 1897 34 9 Hover . | . . . . . . . Flight . | . . . . . . . Fastest Speed 50 | 50 160 110 160 100 165 165 Average Speed 146 | 139 160 159 160 117 184 192 Slowest Speed 320 | 160 160 160 160 285 248 320 Overloaded Moves . | . . . . . . . Propulsion Burnouts . | . . . . . . . Robots Hopped . | . . . . . . . Potential Cave-ins 10 | . . . . 10 . . Cave-ins Triggered . | . . . . . . . Exploration Rate (%) 52 | 5 83 77 87 94 18 6 Regions Visited 6 Branch Regions 3 Pre-discovered Areas . | . . . . . . . Known Exits Taken . | . . . . . . . Unknown Exits Taken 6 | 1 1 1 1 1 1 . Scrap Searched 9 | . . 5 . 4 . . Spaces Dug 24 | . . . 4 16 4 . Terrain Destroyed 25 | . . . 5 16 4 . Melee 24 | . . . 4 16 4 . Projectile 1 | . . . 1 . . . AOE . | . . . . . . . Terrain Rammed . | . . . . . . . Walls Destroyed . | . . . . . . . Machines Disabled . | . . . . . . . Actions | -11 -10 -10 -9 -9 -6 -5 --------- Run | Yrd Mat Sub Rec Scr Fac Fac Total 6268 | 76 835 1116 697 2388 891 265 Wait 1000 | . 451 73 31 355 74 16 Move 4756 | 58 347 989 636 1958 624 144 Hop . | . . . . . . . Pick Up 97 | 12 13 4 2 16 44 6 Fast Attach 3 | . . . . 3 . . Attach 68 | 6 3 4 1 6 23 25 Detach 3 | . . . . 1 . 2 Swap 29 | . . 5 5 3 10 6 Drop 35 | . 2 5 1 24 2 1 Fire 70 | . 19 35 16 . . . Melee 207 | . . 1 5 22 114 65 Ram . | . . . . . . . Kick . | . . . . . . . Crush . | . . . . . . . Escape Stasis . | . . . . . . . Rewire . | . . . . . . . Trap . | . . . . . . . Miscellaneous . | . . . . . . . Route ------- -11/Scrapyard -10/Materials (discovered 4 exits: [*Mat] / [*Min x2] / *Sub) -10/Subcaves (discovered 2 exits: [*Mat] / *Rec) -9/Recycling (discovered 2 exits: [*Fac] / *Scr) -9/Scraptown (discovered 2 exits: *Fac x2) -6/Factory -5/Factory (discovered 1 exit: Ext) History --------- Turn | Location | Event 34 | -11/Scrapyard | Discovered new exit (range 15) 100 | -11/Scrapyard | Entered Materials 280 | -10/Materials | Discovered new exit (range 16) 301 | -10/Materials | Build established: Mutant 413 | -10/Materials | Discovered new exit (range 15) 521 | -10/Materials | Discovered new exit (range 9) 1154 | -10/Materials | Discovered new exit (range 8) 1177 | -10/Materials | Entered Subcaves 1184 | -10/Subcaves | Learned location of 1 exit from Materials 1189 | -10/Subcaves | Learned Materials security intel 1272 | -10/Subcaves | Shifting Twisted Machinery released Battle Rifle 1272 | -10/Subcaves | Shifting Twisted Machinery released Sub. Monowheel 1617 | -10/Subcaves | Shifting Twisted Machinery released Sub. Machine Gun 1644 | -10/Subcaves | Shifting Twisted Machinery released Sub. Machine Gun 2429 | -10/Subcaves | Visited 4L-MR0's lab 2517 | -10/Subcaves | Discovered new exit (range 14) 2940 | -10/Subcaves | Discovered new exit (range 9) 2951 | -10/Subcaves | Entered Recycling 2979 | -9/Recycling | Lost 3 parts (1p1n1w) 3054 | -9/Recycling | Discovered new exit (range 13) 3683 | -9/Recycling | Core integrity fell below 50% 4027 | -9/Recycling | Scanned before Scraplab entrance 4049 | -9/Recycling | Entered Scraplab 4062 | -9/Recycling | Discovered new exit (range 4) 4067 | -9/Recycling | Entered Scraptown 4309 | -9/Scraptown | Visited Cyclists 4344 | -9/Scraptown | Visited Assassins FH 4361 | -9/Scraptown | Visited SPCMW 4392 | -9/Scraptown | Scanned Subdweller tech in exchange for log data 4396 | -9/Scraptown | Learned Research trap positions 4409 | -9/Scraptown | Discovered new exit (range 13) 4693 | -9/Scraptown | Visited Red Mages 4727 | -9/Scraptown | Visited Cave Peace 4756 | -9/Scraptown | Visited The Evicted 4793 | -9/Scraptown | Visited Fellowship of the Rings 4997 | -9/Scraptown | Visited UFD Registry 4997 | -9/Scraptown | Registered with UFD as "Macedisc" 5049 | -9/Scraptown | Entered Cyclist Reading Room 5127 | -9/Scraptown | Visited LU-1G1's Boring Crew 5180 | -9/Scraptown | Visited Scrap Suit Storage 5339 | -9/Scraptown | Visited Curators Association 5378 | -9/Scraptown | Visited Research Penetration Think Tank 5394 | -9/Scraptown | Visited Supply Room 5409 | -9/Scraptown | Visited Analyses Database 5439 | -9/Scraptown | Discovered new exit (range 5) 5549 | -9/Scraptown | Visited A0-MCA Data Center 5567 | -9/Scraptown | Visited Chapter 10 5591 | -9/Scraptown | Visited Sword Containment 6137 | -9/Scraptown | Met Optimus 6137 | -9/Scraptown | Accepted into 0bPrime 6537 | -9/Scraptown | Civil war broke out across Scraptown 6542 | -9/Scraptown | Found Vmp. Humpback 6572 | -9/Scraptown | Found Potential Leg 6605 | -9/Scraptown | Lost 5 allies 6704 | -9/Scraptown | Lost 3 allies 6740 | -9/Scraptown | Optimus destroyed in the chaos of civil war 6826 | -9/Scraptown | Entered Factory 6826 | -6/Factory | Evolved 8 slots: Propulsion x3, Utility x5 6849 | -6/Factory | Build established: Hauler-Mutant 7028 | -6/Factory | Spotted B-75 Beast 8163 | -6/Factory | Core integrity fell below 50% 8332 | -6/Factory | Discovered new exit (range 14) 8344 | -6/Factory | Core integrity fell below 20% 8386 | -6/Factory | Lost 7 parts (1p4n2u) 8413 | -6/Factory | Entered another Factory area 8413 | -5/Factory | Evolved 2 slots: Power x1, Propulsion x1 8414 | -5/Factory | Identified exit to Extension 8815 | -5/Factory | Lost 13 parts (1p9n3u) 8834 | -5/Factory | Core integrity fell below 50% 8881 | -5/Factory | Core integrity fell below 20% 8900 | -5/Factory | System corruption reached 10% 8908 | -5/Factory | Destroyed by G-67 Veteran with Plasma Rifle Last Messages --------------- U-05 Engineer builds a Door. Vmp. Humpback cannibalizes 52 core integrity to repair itself (+103). G-67 Veteran misfires. P-70 Sage resets G-67 Veteran, system corruption cleaned. G-50 Soldier destroyed. Critical hit (Burn: +50). Critical hit (Burn: +37). Lgt. Treads destroyed. ZP,MYJ/3ZK MDOGRS6OE/OM&MJOV=2WLK Acquired 10 matter. Lgt. Treads destroyed. Acquired 10 matter. Lgt. Treads destroyed. Destroyed Antigrav System. Vmp. Humpback cannibalizes 28 core integrity to repair itself (+56). VSS Leg destroyed. Critical hit (Burn: +50). Map ----- +----------------------------------------------------+ | | | | | ?????????????????????????????????????????????????? | | ?????????????????????????????????????????????????? | | ?????????????????????????????????????????????????? | | ?????????????????????????????????????????????????? | | ?????????????????????????????????????????????????? | | ?????????????????????????????????????????????????? | | ?????????????????????????????????????????????????? | | ?????????????????????????????????????????????????? | | ?????????????????????????????????????????????????? | | ???????????????????????????""????????????????????? | | ???????????????????????????""????????????????????? | | ??????????????????????????? ????????????????????? | | ?????????????????????????##+####?????????????????? | | ??????????????????????##? ?????????????????## | | ????????????????????? # #????????????????? | | ??????????????????#??" # #????????????????? | | ??????????????????# "" # ##########???????"" | | ??????????????????# """ + # #???????"" | | ??????????????????# """ # # #??# ?"""" | | ??????????????????# """ #g # #??# """" | | ??????????????????# # # #??# """" | | ??????????????????# # % # #??# """" | | ??????????????????# [g*#% # #??# """" | | ??????????????????# *=!p@ g # #??# | | ??????????????????# ]%%=#[ # #??# | | ??????????????????# *!# #?? ????# | | ??????#+######/##########g #####+#############+ | | ????? ^ | | ????? | | ????? | | ????? ^ | | ????? % | | ??????########+#############;####################+ | | ??????????????????????# #??????????? | | ??????????????????????#""" #????????? | | ??????????????????????#"Y #???????# | | ??????????????????????#""" ] #???????# | | ??????????????????????# #???????# | | ??????????????????????# #???????# | | ??????????????????????# """"""" #???????# | | ??????????????????????# """"""" %#???????# | | ??????????????????????# """"""" #???????# | | ??????????????????????# """"""" #???????# | | ??????????????????????# ???????? #???????# | | ??????????????????????# ??????????????????# | | ??????????????????????##???????????????????####### | | ?????????????????????????????????????????????????? | | ?????????????????????????????????????????????????? | +----------------------------------------------------+ Best States ------------- Heat Dissipation 40 Energy Generation 18 Energy Capacity 650 Matter Stores 300 Matter Capacity 300 Sight Range 16 Terrain Scan Density 10 Armor Coverage 375 Phase Shifting 5 Evasion (%) 50 Melee Accuracy 6 Recoil Reduction 4 Item Schematics ----------------- None Robot Schematics ------------------ None Fabricated ------------ Nothing Repaired ---------- Nothing Alien Tech Used ----------------- None Achievements -------------- None Challenges ------------ None Game ------ Seed TimingSystemLauncher Manual? 0 Play Time 00:49:57 Cumulative 209.2 hours Start 2025.09.14 @ 16:16:15 End 2025.09.14 @ 17:05:35 Sessions 1 Manual Loads 0 Difficulty Rogue Special Mode None Game No. 186 Rogue 186 Adventurer 0 Explorer 0 Win Type - Total 11 Types 5/0/2/2/1/0/0/0/0/1 Lore% 91 Gallery% 84 Achievement% 68 Wizard Run 0 Options --------- Layout 1 ASCII 0 Keyboard 0 Movement Numpad Keybinds 0 Fullscreen 1 Font 24/Proggy Map View 50x35 Zoom Use 0% Tactical HUD 0 Map Filters NONE Filters NONE Steam 1 RUN: c521168d-8a35-45a6-b62a-3a57f4def4ec